fUST/lending_fUST_20250828
["ID","MTS","AMOUNT","RATE_DAILY","PERIOD"]
[381874153,1756384244776,-480.0,0.00019178,2]
[381874155,1756384244786,-480.0,0.00019178,2]
[381874157,1756384244795,-363.13974,0.00019178,2]
[381874159,1756384244805,-480.0,0.00019178,2]
[381874161,1756384244814,-480.0,0.00019178,2]
[381874163,1756384244824,-480.0,0.00019178,2]
[381874165,1756384244834,-480.0,0.00019178,2]
[381874167,1756384244844,-480.0,0.00019178,2]
[381874169,1756384244853,-480.0,0.00019178,2]
[381874171,1756384244863,-918.93,0.00019178,2]
[381874173,1756384244872,-480.0,0.00019178,2]
[381874174,1756384244882,-480.0,0.00019178,2]
[381874176,1756384244892,-480.0,0.00019178,2]
[381874178,1756384244903,-802.9,0.00019178,2]
[381874180,1756384244913,-480.0,0.00019178,2]
[381874182,1756384244923,-480.0,0.00019178,2]
[381874184,1756384244933,-480.0,0.00019178,2]
[381874186,1756384244943,-480.0,0.00019178,2]
[381874188,1756384244953,-480.0,0.00019178,2]
[381874190,1756384244962,-480.0,0.00019178,2]
[381874192,1756384244972,-480.0,0.00019178,2]
[381874194,1756384244983,-787.3,0.00019178,2]
[381874196,1756384244992,-480.0,0.00019178,2]
[381874198,1756384245002,-480.0,0.00019178,2]
[381874200,1756384245014,-480.0,0.00019178,2]
[381874202,1756384245024,-526.6,0.00019178,2]
[381874204,1756384245034,-480.0,0.00019178,2]
[381874206,1756384245043,-480.0,0.00019178,2]
[381874207,1756384245053,-480.0,0.00019178,2]
[381874209,1756384245062,-480.0,0.00019178,2]
[381874211,1756384245071,-480.0,0.00019178,2]
[381874213,1756384245081,-1409.26,0.00019178,2]
[381874215,1756384245091,-483.58015102,0.00019178,2]
[381874236,1756384245308,-480.0,0.00019178,2]
[381874238,1756384245321,-480.4814111,0.00019178,2]
[381874240,1756384245330,-480.0,0.00019178,2]
[381874242,1756384245341,-480.0,0.00019178,2]
[381874244,1756384245351,-480.0,0.00019178,2]
[381874246,1756384245361,-480.0,0.00019178,2]
[381874248,1756384245371,-480.0,0.00019178,2]
[381874250,1756384245380,-480.0,0.00019178,2]
[381874252,1756384245389,-480.0,0.00019178,2]
[381874254,1756384245399,-480.0,0.00019178,2]
[381874256,1756384245408,-480.0,0.00019178,2]
[381874258,1756384245418,-480.0,0.00019178,2]
[381874260,1756384245427,-480.0,0.00019178,2]
[381874262,1756384245437,-480.0,0.00019178,2]
[381874264,1756384245447,-480.0,0.00019178,2]
[381874266,1756384245456,-480.0,0.00019178,2]
[381874268,1756384245467,-480.0,0.00019178,2]
[381874270,1756384245476,-481.11920866,0.00019178,2]
[381874271,1756384245488,-480.0,0.00019178,2]
[381874273,1756384245497,-480.0,0.00019178,2]
[381874275,1756384245507,-480.0,0.00019178,2]
[381874277,1756384245517,-480.0,0.00019178,2]
[381874279,1756384245526,-578.3,0.00019178,2]
[381874282,1756384245535,-481.15761349,0.00019178,2]
[381874285,1756384245546,-389.80839688,0.00019178,2]
[381874288,1756384245556,-932.32,0.00019178,2]
[381874291,1756384245567,-480.0,0.00019178,2]
[381874294,1756384245576,-480.0,0.00019178,2]
[381874297,1756384245586,-480.0,0.00019178,2]
[381874300,1756384245596,-480.0,0.00019178,2]
[381874303,1756384245606,-564.91089389,0.00019178,2]
[381874305,1756384245616,-480.0,0.00019178,2]
[381874308,1756384245625,-480.0,0.00019178,2]
[381874311,1756384245635,-480.0,0.00019178,2]
[381874314,1756384245644,-480.0,0.00019178,2]
[381874317,1756384245654,-480.0,0.00019178,2]
[381874320,1756384245664,-480.0,0.00019178,2]
[381874323,1756384245674,-480.0,0.00019178,2]
[381874326,1756384245684,-480.0,0.00019178,2]
[381874329,1756384245694,-480.0,0.00019178,2]
[381874333,1756384245704,-545.09,0.00019178,2]
[381874336,1756384245713,-488.05,0.00019178,2]
[381874339,1756384245724,-480.0,0.00019178,2]
[381874341,1756384245735,-480.0,0.00019178,2]
[381874344,1756384245744,-480.0,0.00019178,2]
[381874347,1756384245754,-480.0,0.00019178,2]
[381874350,1756384245764,-480.0,0.00019178,2]
[381874353,1756384245775,-480.0,0.00019178,2]
[381874356,1756384245785,-609.22,0.00019178,2]
[381874359,1756384245794,-480.0,0.00019178,2]
[381874362,1756384245804,-385.26578969,0.00019178,2]
[381874365,1756384245814,-480.0,0.00019178,2]
[381874368,1756384245824,-480.0,0.00019178,2]
[381874371,1756384245834,-480.0,0.00019178,2]
[381874374,1756384245844,-480.99712918,0.00019178,2]
[381874378,1756384245854,-480.0,0.00019178,2]
[381874381,1756384245864,-480.0,0.00019178,2]
[381874384,1756384245873,-480.0,0.00019178,2]
[381874387,1756384245883,-480.0,0.00019178,2]
[381874390,1756384245893,-366.07805444,0.00019178,2]
[381874393,1756384245902,-480.0,0.00019178,2]
[381874395,1756384245911,-480.0,0.00019178,2]
[381874398,1756384245921,-480.0,0.00019178,2]
[381874401,1756384245930,-480.0,0.00019178,2]
[381874404,1756384245940,-504.18,0.00019178,2]
[381874407,1756384245951,-539.51,0.00019178,2]
[381874410,1756384245960,-640.54,0.00019178,2]
[381874413,1756384245970,-480.0,0.00019178,2]
[381874416,1756384245980,-480.0,0.00019178,2]
[381874418,1756384245990,-480.0,0.00019178,2]
[381874420,1756384245999,-480.0,0.00019178,2]
[381874423,1756384246008,-480.0,0.00019178,2]
[381874425,1756384246018,-578.57,0.00019178,2]
[381874428,1756384246027,-480.0,0.00019178,2]
[381874431,1756384246037,-480.0,0.00019178,2]
[381874434,1756384246047,-480.0,0.00019178,2]
[381874437,1756384246057,-480.0,0.00019178,2]
[381874439,1756384246067,-480.0,0.00019178,2]
[381874442,1756384246076,-480.0,0.00019178,2]
[381874445,1756384246085,-480.0,0.00019178,2]
[381874448,1756384246095,-480.0,0.00019178,2]
[381874450,1756384246104,-480.0,0.00019178,2]
[381874453,1756384246114,-480.0,0.00019178,2]
[381874456,1756384246127,-493.03286368,0.00019178,2]
[381874458,1756384246136,-482.13373357,0.00019178,2]
[381874460,1756384246146,-625.90629212,0.00019178,2]
[381874462,1756384246156,-480.0,0.00019178,2]
[381874464,1756384246166,-482.61486855,0.00019178,2]
[381874466,1756384246176,-776.37,0.00019178,2]
[381874468,1756384246186,-480.0,0.00019178,2]
[381874470,1756384246198,-480.0,0.00019178,2]
[381874472,1756384246208,-480.0,0.00019178,2]
[381874474,1756384246218,-480.0,0.00019178,2]
[381874492,1756384246229,-480.0,0.00019178,2]
[381874494,1756384246408,-480.0,0.00019178,2]
[381874496,1756384246418,-480.0,0.00019178,2]
[381874498,1756384246428,-480.0,0.00019178,2]
[381874500,1756384246437,-480.0,0.00019178,2]
[381874502,1756384246447,-371.25502092,0.00019178,2]
[381874504,1756384246456,-919.41,0.00019178,2]
[381874506,1756384246466,-480.0,0.00019178,2]
[381874508,1756384246475,-480.0,0.00019178,2]
[381874510,1756384246486,-480.0,0.00019178,2]
[381874512,1756384246495,-480.0,0.00019178,2]
[381874514,1756384246504,-480.0,0.00019178,2]
[381874515,1756384246513,-480.0,0.00019178,2]
[381874517,1756384246523,-480.0,0.00019178,2]
[381874519,1756384246533,-480.0,0.00019178,2]
[381874521,1756384246542,-480.0,0.00019178,2]
[381874523,1756384246552,-480.0,0.00019178,2]
[381874525,1756384246561,-848.71,0.00019178,2]
[381874527,1756384246571,-480.0,0.00019178,2]
[381874529,1756384246580,-500.0,0.00019178,2]
[381874531,1756384246590,-480.0,0.00019178,2]
[381874533,1756384246599,-519.15,0.00019178,2]
[381874535,1756384246609,-480.0,0.00019178,2]
[381874537,1756384246618,-480.0,0.00019178,2]
[381874539,1756384246627,-668.9,0.00019178,2]
[381874541,1756384246636,-480.0,0.00019178,2]
[381874543,1756384246645,-678.84,0.00019178,2]
[381874545,1756384246655,-480.0,0.00019178,2]
[381874546,1756384246664,-480.0,0.00019178,2]
[381874548,1756384246674,-480.0,0.00019178,2]
[381874550,1756384246684,-480.0,0.00019178,2]
[381874552,1756384246694,-480.0,0.00019178,2]
[381874554,1756384246704,-480.0,0.00019178,2]
[381874556,1756384246713,-480.0,0.00019178,2]
[381874558,1756384246723,-1356.22,0.00019178,2]
[381874560,1756384246733,-480.0,0.00019178,2]
[381874562,1756384246742,-1001.69,0.00019178,2]
[381874564,1756384246752,-480.0,0.00019178,2]
[381874566,1756384246761,-1735.58,0.00019178,2]
[381874568,1756384246770,-481.07404517,0.00019178,2]
[381874570,1756384246779,-480.0,0.00019178,2]
[381874572,1756384246789,-480.0,0.00019178,2]
[381874573,1756384246798,-480.0,0.00019178,2]
[381874575,1756384246808,-1198.11,0.00019178,2]
[381874577,1756384246817,-480.0,0.00019178,2]
[381874579,1756384246827,-480.0,0.00019178,2]
[381874581,1756384246837,-480.0,0.00019178,2]
[381874583,1756384246846,-480.0,0.00019178,2]
[381874584,1756384246855,-480.0,0.00019178,2]
[381874585,1756384246865,-480.0,0.00019178,2]
[381874586,1756384246874,-480.0,0.00019178,2]
[381874587,1756384246883,-771.67,0.00019178,2]
[381874588,1756384246893,-2194.34,0.00019178,2]
[381874589,1756384246902,-1111.13,0.00019178,2]
[381874590,1756384246912,-480.0,0.00019178,2]
[381874591,1756384246922,-480.0,0.00019178,2]
[381874592,1756384246931,-480.0,0.00019178,2]
[381874593,1756384246941,-480.0,0.00019178,2]
[381874594,1756384246950,-480.0,0.00019178,2]
[381874595,1756384246960,-664.64,0.00019178,2]
[381874596,1756384246970,-480.0,0.00019178,2]
[381874597,1756384246980,-480.0,0.00019178,2]
[381874598,1756384246989,-480.0,0.00019178,2]
[381874599,1756384246999,-480.0,0.00019178,2]
[381874600,1756384247008,-1289.8,0.00019178,2]
[381874601,1756384247016,-481.95220156,0.00019178,2]
[381874602,1756384247026,-523.97,0.00019178,2]
[381874603,1756384247035,-480.0,0.00019178,2]
[381874604,1756384247044,-480.0,0.00019178,2]
[381874605,1756384247053,-480.0,0.00019178,2]
[381874606,1756384247063,-480.0,0.00019178,2]
[381874607,1756384247072,-480.0,0.00019178,2]
[381874608,1756384247082,-249.11117493,0.00019178,2]
[381874609,1756384247091,-480.0,0.00019178,2]
[381874610,1756384247100,-1977.57,0.00019178,2]
[381874612,1756384247110,-1519.44,0.00019178,2]
[381874613,1756384247119,-480.0,0.00019178,2]
[381874614,1756384247129,-480.0,0.00019178,2]
[381874616,1756384247139,-480.0,0.00019178,2]
[381874618,1756384247149,-1910.05,0.00019178,2]
[381874620,1756384247159,-480.0,0.00019178,2]
[381874622,1756384247168,-480.0,0.00019178,2]
[381874624,1756384247178,-480.0,0.00019178,2]
[381874626,1756384247187,-480.0,0.00019178,2]
[381874628,1756384247201,-480.0,0.00019178,2]
[381874630,1756384247211,-480.0,0.00019178,2]
[381874632,1756384247221,-480.0,0.00019178,2]
[381874635,1756384247231,-480.0,0.00019178,2]
[381874637,1756384247240,-487.58,0.00019178,2]
[381874639,1756384247250,-480.0,0.00019178,2]
[381874641,1756384247259,-480.0,0.00019178,2]
[381874642,1756384247269,-346.67439831,0.00019178,2]
[381874645,1756384247279,-480.0,0.00019178,2]
[381874647,1756384247288,-590.49,0.00019178,2]
[381874648,1756384247298,-482.54914917,0.00019178,2]
[381874650,1756384247307,-3678.97,0.00019178,2]
[381874652,1756384247317,-480.0,0.00019178,2]
[381874654,1756384247327,-167.55244698,0.00019178,2]
[381874656,1756384247336,-480.0,0.00019178,2]
[381874658,1756384247345,-480.0,0.00019178,2]
[381874660,1756384247355,-556.51,0.00019178,2]
[381874662,1756384247364,-480.0,0.00019178,2]
[381874664,1756384247373,-955.97,0.00019178,2]
[381874666,1756384247384,-480.0,0.00019178,2]
[381874668,1756384247393,-480.0,0.00019178,2]
[381874671,1756384247403,-484.26,0.00019178,2]
[381874673,1756384247413,-2547.54,0.00019178,2]
[381874675,1756384247422,-480.0,0.00019178,2]
[381874677,1756384247432,-480.0,0.00019178,2]
[381874679,1756384247441,-151.0,0.00019178,2]
[381874681,1756384247450,-480.0,0.00019178,2]
[381874683,1756384247460,-480.0,0.00019178,2]
[381874685,1756384247470,-643.55,0.00019178,2]
[381874687,1756384247480,-151.0,0.00019178,2]
[381874689,1756384247490,-480.0,0.00019178,2]
[381874691,1756384247500,-480.0,0.00019178,2]
[381874693,1756384247509,-480.0,0.00019178,2]
[381874695,1756384247519,-480.0,0.00019178,2]
[381874697,1756384247528,-480.0,0.00019178,2]
[381874699,1756384247538,-567.35,0.00019178,2]
[381874701,1756384247547,-480.0,0.00019178,2]
[381874703,1756384247557,-796.41,0.00019178,2]
[381874704,1756384247567,-1775.23,0.00019178,2]
[381874707,1756384247577,-480.0,0.00019178,2]
[381874709,1756384247587,-480.0,0.00019178,2]
[381874711,1756384247597,-480.0,0.00019178,2]
[381874713,1756384247606,-1077.38,0.00019178,2]
[381874715,1756384247616,-481.0,0.00019178,2]
[381874717,1756384247626,-698.14,0.00019178,2]
[381874719,1756384247636,-480.0,0.00019178,2]
[381874721,1756384247646,-480.0,0.00019178,2]
[381874723,1756384247657,-480.0,0.00019178,2]
[381874725,1756384247666,-858.64,0.00019178,2]
[381874727,1756384247675,-480.0,0.00019178,2]
[381874729,1756384247686,-480.0,0.00019178,2]
[381874731,1756384247695,-923.5,0.00019178,2]
[381874733,1756384247705,-480.0,0.00019178,2]
[381874735,1756384247715,-500.0,0.00019178,2]
[381874737,1756384247725,-500.0,0.00019178,2]
[381874739,1756384247735,-480.0,0.00019178,2]
[381874741,1756384247745,-480.0,0.00019178,2]
[381874743,1756384247756,-480.0,0.00019178,2]
[381874745,1756384247766,-480.0,0.00019178,2]
[381874747,1756384247776,-480.0,0.00019178,2]
[381874749,1756384247786,-782.4,0.00019178,2]
[381874751,1756384247796,-621.13,0.00019178,2]
[381874753,1756384247806,-480.0,0.00019178,2]
[381874755,1756384247816,-527.28067725,0.00019178,2]
[381874757,1756384247826,-2317.87,0.00019178,2]
[381874759,1756384247836,-480.0,0.00019178,2]
[381874761,1756384247845,-480.0,0.00019178,2]
[381874763,1756384247855,-480.0,0.00019178,2]
[381874765,1756384247864,-480.0,0.00019178,2]
[381874767,1756384247874,-480.0,0.00019178,2]
[381874769,1756384247884,-3154.04,0.00019178,2]
[381874771,1756384247893,-480.0,0.00019178,2]
[381874773,1756384247903,-585.55,0.00019178,2]
[381874775,1756384247913,-480.0,0.00019178,2]
[381874778,1756384247923,-480.0,0.00019178,2]
[381874779,1756384247933,-2927.74,0.00019178,2]
[381874782,1756384247943,-480.0,0.00019178,2]
[381874784,1756384247952,-3903.77,0.00019178,2]
[381874786,1756384247962,-480.0,0.00019178,2]
[381874788,1756384247971,-618.24,0.00019178,2]
[381874790,1756384247980,-480.0,0.00019178,2]
[381874792,1756384247991,-480.0,0.00019178,2]
[381874793,1756384248000,-480.0,0.00019178,2]
[381874796,1756384248010,-480.0,0.00019178,2]
[381874798,1756384248019,-480.0,0.00019178,2]
[381874799,1756384248028,-480.0,0.00019178,2]
[381874801,1756384248038,-480.0,0.00019178,2]
[381874803,1756384248047,-2981.08,0.00019178,2]
[381874805,1756384248057,-480.0,0.00019178,2]
[381874808,1756384248067,-605.41,0.00019178,2]
[381874810,1756384248076,-480.0,0.00019178,2]
[381874812,1756384248085,-1613.16,0.00019178,2]
[381874814,1756384248095,-494.92,0.00019178,2]
[381874816,1756384248104,-674.0,0.00019178,2]
[381874818,1756384248113,-480.0,0.00019178,2]
[381874820,1756384248124,-480.0,0.00019178,2]
[381874822,1756384248133,-480.0,0.00019178,2]
[381874824,1756384248142,-480.0,0.00019178,2]
[381874826,1756384248152,-480.0,0.00019178,2]
[381874828,1756384248162,-480.0,0.00019178,2]
[381874830,1756384248171,-480.0,0.00019178,2]
[381874832,1756384248182,-710.3,0.00019178,2]
[381874834,1756384248193,-480.0,0.00019178,2]
[381874836,1756384248204,-5843.28,0.00019178,2]
[381874838,1756384248214,-1350.34,0.00019178,2]
[381874840,1756384248224,-611.74,0.00019178,2]
[381874842,1756384248233,-480.0,0.00019178,2]
[381874844,1756384248243,-1234.59,0.00019178,2]
[381874846,1756384248253,-581.93,0.00019178,2]
[381874848,1756384248262,-480.0,0.00019178,2]
[381874850,1756384248272,-480.0,0.00019178,2]
[381874852,1756384248282,-828.21,0.00019178,2]
[381874854,1756384248291,-480.0,0.00019178,2]
[381874856,1756384248302,-480.0,0.00019178,2]
[381874858,1756384248311,-480.0,0.00019178,2]
[381874860,1756384248320,-500.0,0.00019178,2]
[381874862,1756384248330,-1674.08,0.00019178,2]
[381874864,1756384248339,-500.0,0.00019178,2]
[381874866,1756384248348,-480.0,0.00019178,2]
[381874868,1756384248358,-485.04708374,0.00019178,2]
[381874870,1756384248367,-480.0,0.00019178,2]
[381874872,1756384248377,-636.77,0.00019178,2]
[381874874,1756384248387,-480.0,0.00019178,2]
[381874876,1756384248398,-480.0,0.00019178,2]
[381874878,1756384248408,-480.0,0.00019178,2]
[381874880,1756384248417,-1941.39,0.00019178,2]
[381874882,1756384248427,-480.0,0.00019178,2]
[381874884,1756384248436,-480.0,0.00019178,2]
[381874886,1756384248446,-480.0,0.00019178,2]
[381874888,1756384248455,-480.0,0.00019178,2]
[381874890,1756384248465,-480.0,0.00019178,2]
[381874892,1756384248474,-3699.9,0.00019178,2]
[381874894,1756384248485,-480.0,0.00019178,2]
[381874896,1756384248495,-480.0,0.00019178,2]
[381874898,1756384248503,-480.0,0.00019178,2]
[381874900,1756384248513,-480.13043945,0.00019178,2]
[381874902,1756384248524,-480.0,0.00019178,2]
[381874904,1756384248534,-480.0,0.00019178,2]
[381874906,1756384248544,-480.0,0.00019178,2]
[381874908,1756384248554,-480.0,0.00019178,2]
[381874910,1756384248563,-1220.04,0.00019178,2]
[381874912,1756384248574,-480.0,0.00019178,2]
[381874914,1756384248584,-898.06,0.00019178,2]
[381874916,1756384248595,-480.0,0.00019178,2]
[381874918,1756384248604,-480.0,0.00019178,2]
[381874920,1756384248615,-480.0,0.00019178,2]
[381874922,1756384248624,-480.0,0.00019178,2]
[381874924,1756384248634,-480.0,0.00019178,2]
[381874926,1756384248644,-480.0,0.00019178,2]
[381874928,1756384248654,-5054.96,0.00019178,2]
[381874930,1756384248664,-480.0,0.00019178,2]
[381874932,1756384248674,-480.0,0.00019178,2]
[381874934,1756384248684,-480.0,0.00019178,2]
[381874942,1756384248694,-480.0,0.00019178,2]
[381874944,1756384248754,-2742.83,0.00019178,2]
[381874946,1756384248763,-480.0,0.00019178,2]
[381874948,1756384248772,-480.0,0.00019178,2]
[381874950,1756384248782,-583.88,0.00019178,2]
[381874952,1756384248791,-506.64006622,0.00019178,2]
[381874954,1756384248801,-480.0,0.00019178,2]
[381874956,1756384248810,-692.54,0.00019178,2]
[381874958,1756384248820,-480.0,0.00019178,2]
[381874960,1756384248829,-746.84,0.00019178,2]
[381874962,1756384248839,-480.0,0.00019178,2]
[381874964,1756384248848,-480.0,0.00019178,2]
[381874966,1756384248858,-480.0,0.00019178,2]
[381874968,1756384248867,-533.95,0.00019178,2]
[381874970,1756384248877,-480.59520704,0.00019178,2]
[381874972,1756384248886,-480.0,0.00019178,2]
[381874974,1756384248896,-480.0,0.00019178,2]
[381874976,1756384248907,-480.96150247,0.00019178,2]
[381874978,1756384248916,-480.0,0.00019178,2]
[381874980,1756384248926,-520.42,0.00019178,2]
[381874982,1756384248936,-480.0,0.00019178,2]
[381874984,1756384248946,-485.00430581,0.00019178,2]
[381874986,1756384248956,-480.0,0.00019178,2]
[381874988,1756384248966,-480.0,0.00019178,2]
[381874990,1756384248976,-480.0,0.00019178,2]
[381874992,1756384248988,-2834.09,0.00019178,2]
[381874994,1756384248998,-480.0,0.00019178,2]
[381874996,1756384249008,-1293.02,0.00019178,2]
[381874998,1756384249018,-597.01498634,0.00019178,2]
[381875000,1756384249028,-480.0,0.00019178,2]
[381875002,1756384249037,-480.0,0.00019178,2]
[381875004,1756384249047,-3182.62,0.00019178,2]
[381875006,1756384249056,-480.0,0.00019178,2]
[381875008,1756384249065,-480.0,0.00019178,2]
[381875010,1756384249078,-480.0,0.00019178,2]
[381875013,1756384249089,-480.0,0.00019178,2]
[381875015,1756384249098,-543.79,0.00019178,2]
[381875017,1756384249108,-480.0,0.00019178,2]
[381875018,1756384249118,-480.0,0.00019178,2]
[381875021,1756384249127,-480.0,0.00019178,2]
[381875023,1756384249137,-480.0,0.00019178,2]
[381875025,1756384249146,-176.71479611,0.00019178,2]
[381875027,1756384249158,-480.0,0.00019178,2]
[381875029,1756384249168,-480.0,0.00019178,2]
[381875031,1756384249178,-480.0,0.00019178,2]
[381875033,1756384249188,-151.2106036,0.00019178,2]
[381875035,1756384249202,-151.0,0.00019178,7]
[381875037,1756384249211,-151.0,0.00019178,7]
[381875039,1756384249221,-151.0,0.00019178,7]
[381875041,1756384249231,-151.0,0.00019178,7]
[381875042,1756384249242,-161.292614,0.00019178,7]
[381875044,1756384249252,-4583.29073917,0.00019179,2]
[381875046,1756384249262,-151.0,0.000192,2]
[381875048,1756384249272,-151.0,0.000192,2]
[381875050,1756384249284,-3000.0,0.000192,2]
[381875052,1756384249293,-2061.3450023,0.00019205,5]
[381875054,1756384249303,-247.0,0.00019221,2]
[381875056,1756384249313,-240.0,0.00019221,2]
[381875058,1756384249323,-3849.11120764,0.00019233,2]
[381875060,1756384249332,-2000.0,0.00019237,2]
[381875062,1756384249342,-168.0,0.00019239,2]
[381875064,1756384249352,-500.0,0.00019254,2]
[381875066,1756384249361,-500.0,0.00019257,2]
[381875068,1756384249371,-1492.0,0.00019257,2]
[381875070,1756384249381,-168.0,0.00019272,2]
[381875072,1756384249391,-2246.60636026,0.00019284,2]
[381875075,1756384249403,-151.0,0.000193,2]
[381875077,1756384249413,-151.0,0.000193,2]
[381875078,1756384249423,-151.0,0.000193,2]
[381875081,1756384249434,-160.0,0.00019311,2]
[381875082,1756384249443,-160.0,0.0001932,2]
[381875084,1756384249452,-160.0,0.0001932,2]
[381875086,1756384249461,-217.27834477,0.0001932,2]
[381875088,1756384249471,-160.0,0.0001932,2]
[381875090,1756384249480,-425.52029335,0.0001932,2]
[381875092,1756384249490,-529.67291817,0.0001932,2]
[381875094,1756384249500,-160.0,0.0001932,2]
[381875096,1756384249509,-168.0,0.0001932,2]
[381875098,1756384249519,-12710.44222334,0.00019321,2]
[381875100,1756384249529,-417.15472785,0.00019321,2]
[381875102,1756384249538,-232.64478309,0.00019321,2]
[381875104,1756384249547,-160.0,0.00019321,2]
[381875106,1756384249557,-160.0,0.00019321,2]
[381875108,1756384249567,-160.0,0.00019321,2]
[381875110,1756384249576,-160.0,0.00019321,2]
[381875112,1756384249585,-845.47023312,0.00019321,2]
[381875114,1756384249594,-160.0,0.00019321,2]
[381875116,1756384249603,-216.18903889,0.00019321,2]
[381875118,1756384249613,-173.72917618,0.00019352,2]
[381875120,1756384249623,-194.72792766,0.00019362,2]
[381875122,1756384249634,-419.0,0.00019364,2]
[381875124,1756384249643,-168.0,0.00019398,2]
[381875126,1756384249653,-151.0,0.000194,2]
[381875128,1756384249663,-151.0,0.000194,2]
[381875130,1756384249673,-277.0,0.00019418,2]
[381875132,1756384249683,-261.0,0.00019426,2]
[381875134,1756384249694,-168.0,0.00019429,2]
[381875136,1756384249704,-419.0,0.00019436,2]
[381875138,1756384249713,-151.0,0.00019452,2]
[381875140,1756384249722,-151.0,0.00019452,2]
[381875142,1756384249731,-480.0,0.00019452,2]
[381875144,1756384249742,-480.0,0.00019452,2]
[381875146,1756384249751,-480.0,0.00019452,2]
[381875148,1756384249760,-480.0,0.00019452,2]
[381875150,1756384249770,-444.33971224,0.00019452,2]
[381875152,1756384249779,-480.0,0.00019452,2]
[381875154,1756384249787,-480.0,0.00019452,2]
[381875156,1756384249796,-480.0,0.00019452,2]
[381875158,1756384249805,-480.0,0.00019452,2]
[381875160,1756384249815,-383.05782651,0.00019452,2]
[381875162,1756384249823,-480.0,0.00019452,2]
[381875164,1756384249832,-480.0,0.00019452,2]
[381875166,1756384249842,-480.0,0.00019452,2]
[381875168,1756384249852,-480.0,0.00019452,2]
[381875170,1756384249861,-480.0,0.00019452,2]
[381875172,1756384249870,-480.0,0.00019452,2]
[381875174,1756384249879,-480.0,0.00019452,2]
[381875176,1756384249889,-480.0,0.00019452,2]
[381875178,1756384249898,-480.0,0.00019452,2]
[381875179,1756384249907,-480.0,0.00019452,2]
[381875181,1756384249916,-480.0,0.00019452,2]
[381875183,1756384249925,-480.0,0.00019452,2]
[381875185,1756384249934,-480.0,0.00019452,2]
[381875187,1756384249943,-523.82145266,0.00019452,2]
[381875189,1756384249952,-480.0,0.00019452,2]
[381875191,1756384249961,-480.0,0.00019452,2]
[381875193,1756384249971,-480.0,0.00019452,2]
[381875195,1756384249980,-480.0,0.00019452,2]
[381875197,1756384249991,-480.0,0.00019452,2]
[381875199,1756384250000,-480.0,0.00019452,2]
[381875201,1756384250009,-480.0,0.00019452,2]
[381875203,1756384250019,-480.0,0.00019452,2]
[381875205,1756384250029,-480.0,0.00019452,2]
[381875207,1756384250038,-480.0,0.00019452,2]
[381875209,1756384250047,-480.0,0.00019452,2]
[381875211,1756384250056,-480.0,0.00019452,2]
[381875214,1756384250067,-196.47053413,0.00019452,2]